fUST/lending_fUST_20240707
["ID","MTS","AMOUNT","RATE_DAILY","PERIOD"]
[331378299,1720301455795,-5317.39670246,0.00043835,120]
[331378300,1720301556852,160.02135444,0.00014999,2]
[331378301,1720301562656,391.29109009,0.00014999,2]
[331378304,1720301800526,280.43873428,0.00014999,2]
[331378305,1720301840504,1296.84908693,0.0003352,30]
[331378307,1720301987211,-300.0,0.00016099,2]
[331378308,1720301987265,-300.0,0.00016099,2]
[331378309,1720301987307,-24002.22101235,0.000161,2]
[331378311,1720302080691,-181.8878663,0.000161,2]
[331378312,1720302085412,-181.8878663,0.000161,2]
[331378313,1720302088990,-197.2,0.000161,2]
[331378314,1720302096772,-197.2,0.000161,2]
[331378315,1720302099208,-197.2,0.000161,2]
[331378316,1720302100395,-197.2,0.000161,2]
[331378317,1720302103388,-197.2,0.000161,2]
[331378318,1720302105210,-197.2,0.000161,2]
[331378320,1720302164491,-197.2,0.000161,2]
[331378321,1720302166367,-197.2,0.000161,2]
[331378322,1720302169513,-197.2,0.000161,2]
[331378323,1720302170171,-197.2,0.000161,2]
[331378324,1720302171011,-197.2,0.000161,2]
[331378325,1720302171450,-197.2,0.000161,2]
[331378326,1720302172081,-197.2,0.000161,2]
[331378327,1720302172689,-197.2,0.000161,2]
[331378328,1720302173549,-197.2,0.000161,2]
[331378329,1720302174721,-197.2,0.000161,2]
[331378330,1720302175377,-197.2,0.000161,2]
[331378331,1720302180911,-197.2,0.000161,2]
[331378332,1720302190260,-174.51737108,0.000161,2]
[331378333,1720302190284,-22.68262892,0.000161,2]
[331378334,1720302201791,-141.07001363,0.000161,2]
[331378335,1720302201815,-56.12998637,0.000161,2]
[331378336,1720302206686,-197.2,0.000161,2]
[331378337,1720302209746,-197.2,0.000161,2]
[331378338,1720302218972,-197.2,0.000161,2]
[331378341,1720302224596,-197.2,0.000161,2]
[331378342,1720302237120,-197.2,0.000161,2]
[331378343,1720302237930,-197.2,0.000161,2]
[331378347,1720302295930,207.92285488,0.00014999,2]
[331378350,1720302310980,155.59454808,0.00014999,2]
[331378351,1720302311142,-197.2,0.000161,2]
[331378352,1720302329601,932.60140374,0.00014999,2]
[331378355,1720302356622,197.2,0.0003352,60]
[331378357,1720302362438,215.61294534,0.00014999,2]
[331378358,1720302364153,212.98780093,0.00014999,2]
[331378359,1720302367281,2142.70778652,0.00014999,2]
[331378360,1720302372019,155.29816351,0.00014999,2]
[331378361,1720302374870,209.72130719,0.00014999,2]
[331378363,1720302388106,181.8878663,0.00014999,2]
[331378366,1720302471166,212.98780093,0.00014999,2]
[331378368,1720302550396,2588.84827711,0.00014999,2]
[331378369,1720302565670,212.98780093,0.00014999,2]
[331378370,1720302568603,258.80025544,0.00014999,2]
[331378384,1720302634466,-2992.59418085,0.00016255,2]
[331378402,1720302634808,168.89279474,0.00014999,2]
[331378416,1720302640459,-39239.14574239,0.00016255,2]
[331378417,1720302640469,-154.83742071,0.00016255,2]
[331378418,1720302640484,-179.55856838,0.00016255,2]
[331378419,1720302640495,-287.27338087,0.00016255,2]
[331378420,1720302640505,-294.67476711,0.00016255,2]
[331378421,1720302640553,-176.30685021,0.00016255,2]
[331378422,1720302640650,-400.14782035,0.000176,2]
[331378423,1720302640668,-1040.48365354,0.00018,2]
[331378424,1720302640679,-455.5898504,0.00018098,2]
[331378425,1720302640728,-14766.0061659,0.0001811,2]
[331378426,1720302640757,-177.42277369,0.0001818,2]
[331378427,1720302640770,-510.09603467,0.0001818,2]
[331378428,1720302640799,-74073.22064222,0.0001818,2]
[331378429,1720302640832,-3138.20168904,0.0001818,2]
[331378431,1720302640844,-19378.48287081,0.0001818,2]
[331378432,1720302640857,-492.47001549,0.0001818,2]
[331378433,1720302640986,-181.75072073,0.0001818,2]
[331378434,1720302641106,-525.93863422,0.0001818,2]
[331378435,1720302641137,-1986.97335839,0.0001818,2]
[331378436,1720302641191,-372.56078511,0.0001818,2]
[331378437,1720302641264,-155.92464344,0.0001818,2]
[331378438,1720302641276,-155.14597482,0.0001818,2]
[331378439,1720302641317,-212.98780093,0.0001818,2]
[331378440,1720302641328,-229.51790849,0.0001818,2]
[331378441,1720302641342,-2227.63025687,0.0001818,2]
[331378443,1720302641442,-172.86292287,0.0001818,2]
[331378445,1720302641453,-491.05706512,0.0001818,2]
[331378446,1720302641464,-491.05706512,0.0001818,2]
[331378447,1720302641500,-3000.0,0.00018261,2]
[331378448,1720302641510,-571.729796,0.00018899,2]
[331378450,1720302641566,-182.63268152,0.00018899,2]
[331378456,1720302641740,-908.22919531,0.00018899,2]
[331378457,1720302641751,-197.16559461,0.00019,2]
[331378459,1720302641762,-154.83742071,0.00019165,2]
[331378460,1720302641773,-166.666666,0.0001983,2]
[331378461,1720302641807,-158.12714434,0.00020077,2]
[331378462,1720302641820,-24900.0,0.00020086,2]
[331378463,1720302641831,-1717.8737618,0.00020177,2]
[331378465,1720302641844,-250.0,0.00020304,2]
[331378467,1720302641891,-166.666666,0.00020371,2]
[331378470,1720302641960,-166.666666,0.00020911,2]
[331378471,1720302641973,-315.693091,0.00021096,2]
[331378473,1720302642011,-166.666666,0.00021452,2]
[331378476,1720302642088,-166.666666,0.00021993,2]
[331378479,1720302642148,-166.666666,0.00022533,2]
[331378480,1720302642163,-171983.962537,0.0002498,3]
[331378482,1720302642217,-1024.80976259,0.00025,2]
[331378486,1720302642264,-369.18,0.000255,2]
[331378487,1720302642276,-315.693091,0.00027195,2]
[331378489,1720302642286,-1277.27285341,0.000279,2]
[331378491,1720302642364,-30000.0,0.00027999,2]
[331378492,1720302642375,-796.87513105,0.000285,2]
[331378493,1720302642401,-173.049076,0.00028587,2]
[331378495,1720302642412,-848.76008577,0.00029,2]
[331378498,1720302642491,-257.5679388,0.00029366,2]
[331378499,1720302642503,-250.0,0.00029538,2]
[331378502,1720302642543,-225.0,0.00029618,2]
[331378506,1720302642572,-85991.9812686,0.00029619,3]
[331378510,1720302642633,-85991.9812686,0.00029793,3]
[331378512,1720302642649,-523.88603616,0.000298,120]
[331378513,1720302642669,-85991.9812686,0.00029869,3]
[331378517,1720302642737,-384.35044149,0.0003,10]
[331378518,1720302642748,-7759.99805805,0.0003,10]
[331378519,1720302642759,-202.86745879,0.0003,30]
[331378521,1720302642773,-1000.26496273,0.0003,7]
[331378523,1720302642788,-950.0,0.0003,30]
[331378524,1720302642798,-309.61298378,0.0003,4]
[331378527,1720302642853,-380.90110611,0.00032,120]
[331378528,1720302642866,-1158.30529686,0.00032776,2]
[331378529,1720302642933,-1000.0,0.00032876,10]
[331378530,1720302642968,-315.693091,0.00033295,2]
[331378531,1720302643043,-1025.57827945,0.0003352,4]
[331378532,1720302643053,-5607.48363295,0.0003352,4]
[331378533,1720302643100,-284.30371793,0.0003352,3]
[331378534,1720302643111,-303.07590911,0.0003352,4]
[331378535,1720302643150,-786.95813869,0.00033576,2]
[331378536,1720302643257,-1010.57291213,0.00033576,2]
[331378537,1720302643310,-525.0158049,0.00034,5]
[331378538,1720302643321,-1000.0,0.00034246,10]
[331378539,1720302643335,-9845.32492895,0.00034562,4]
[331378540,1720302643345,-154.83742071,0.00034672,4]
[331378541,1720302643398,-399.49347771,0.00035,2]
[331378542,1720302643408,-1000.0,0.00035616,10]
[331378543,1720302643419,-395.4705443,0.00036,30]
[331378544,1720302643429,-1000.0,0.00036986,10]
[331378545,1720302643440,-1500.92389628,0.00037807,2]
[331378546,1720302643454,-1204.7088314,0.00037999,4]
[331378547,1720302643484,-515.37464779,0.00037999,4]
[331378548,1720302643525,-1000.0,0.00038356,10]
[331378549,1720302643566,-659.76956925,0.00038499,2]
[331378550,1720302643684,-208.81152895,0.00038499,4]
[331378551,1720302643733,-531.71964823,0.00038499,4]
[331378552,1720302643752,-154.83742071,0.00038999,4]
[331378553,1720302643829,-154.83742071,0.00038999,4]
[331378554,1720302643839,-179.75489982,0.00039167,4]
[331378555,1720302643893,-154.83742071,0.00039167,4]
[331378556,1720302643926,-495.50543718,0.00039177,4]
[331378557,1720302643936,-541.96774776,0.00039177,4]
[331378558,1720302643956,-194.6202431,0.00039177,4]
[331378559,1720302643966,-159.60713373,0.00039177,4]
[331378560,1720302643977,-775.2362278,0.00039177,4]
[331378561,1720302643988,-491.6576874,0.00039393,4]
[331378562,1720302643998,-536.46374473,0.00039393,4]
[331378563,1720302644050,-398.44435379,0.00039393,4]
[331378564,1720302644060,-315.693091,0.00039394,2]
[331378566,1720302644086,-206.1814845,0.00039409,2]
[331378567,1720302644097,-1000.0,0.00039726,10]
[331378568,1720302644112,-386.94955372,0.00039765,5]
[331378569,1720302644123,-156.94666191,0.00039999,4]
[331378571,1720302644151,-264.9057893,0.00039999,2]
[331378573,1720302644168,-187.58795298,0.00040229,4]
[331378574,1720302644180,-206.1814845,0.00040231,2]
[331378576,1720302644191,-206.1814845,0.00040231,2]
[331378585,1720302644422,-206.1814845,0.00040231,2]
[331378588,1720302644489,-206.1814845,0.00040231,2]
[331378590,1720302644518,-206.1814845,0.00040231,2]
[331378591,1720302644530,-206.1814845,0.00040231,2]
[331378595,1720302644593,-205.6478485,0.00040231,2]
[331378596,1720302644603,-153.0,0.00040231,2]
[331378598,1720302644622,-153.0,0.00040231,2]
[331378600,1720302644660,-206.11478,0.00040231,2]
[331378601,1720302644691,-153.0,0.00040231,2]
[331378602,1720302644702,-153.0,0.00040231,2]
[331378605,1720302644818,-153.0,0.00040231,2]
[331378606,1720302644830,-1240.95,0.00040546,120]
[331378607,1720302644843,-150.0,0.00040683,2]
[331378608,1720302644854,-525.93863422,0.00040807,4]
[331378612,1720302644909,-1000.0,0.00041095,10]
[331378613,1720302644920,-160.0,0.00041489,3]
[331378614,1720302644932,-683.0,0.00041858,30]
[331378615,1720302644954,-756.19196236,0.00041999,4]
[331378616,1720302644964,-20021.46532489,0.00042325,3]
[331378617,1720302645135,-1000.0,0.00042465,10]
[331378618,1720302645194,-8353.93,0.00042465,120]
[331378619,1720302645255,-2500.0,0.000425,120]
[331378620,1720302645265,-160.0,0.00042804,4]
[331378621,1720302645275,-75021.8700097,0.000429,15]
[331378622,1720302645299,-38706.30775412,0.000429,15]
[331378627,1720302646013,-365.96096441,0.00024979,2]
[331378629,1720302646051,-530.05900299,0.00027184,2]
[331378630,1720302646066,-15322.21925606,0.00027184,2]
[331378632,1720302646096,-671.77936835,0.00027184,2]
[331378633,1720302646132,-2824.40158877,0.00027184,2]
[331378637,1720302646200,-10651.54078383,0.00027184,2]
[331378638,1720302646212,-20779.43934099,0.000429,15]
[331378640,1720302646224,-1365.82188577,0.000429,15]
[331378656,1720302647710,212.98780093,0.00014999,2]
[331378657,1720302647765,-500.19242449,0.00018109,2]
[331378658,1720302647795,-500.0,0.00018109,2]
[331378659,1720302647806,-500.0,0.00018109,2]
[331378660,1720302647818,-500.0,0.00018109,2]
[331378661,1720302647842,-500.0,0.00018109,2]
[331378662,1720302647970,-540.81454626,0.00018109,2]
[331378663,1720302647981,-500.0,0.00018109,2]
[331378664,1720302648025,-500.0,0.00018109,2]
[331378665,1720302648035,-258.71107015,0.0001818,2]
[331378666,1720302648087,-528.35145038,0.0001818,2]
[331378667,1720302648098,-812.51622582,0.00019,3]
[331378668,1720302648160,-118.38008671,0.00038999,4]
[331378674,1720302648431,-377.12535047,0.00038999,4]
[331378676,1720302648442,-30.99714203,0.00039177,2]
[331378679,1720302648501,-123.84027868,0.00039177,2]
[331378681,1720302648513,-153.0,0.00040292,2]
[331378682,1720302648526,-3465.36207507,0.000429,15]
[331378706,1720302649199,154.83742071,0.00014999,2]
[331378707,1720302649837,-564.072,0.00040683,2]
[331378708,1720302649873,-23898.54244084,0.000429,15]
[331378709,1720302649896,-233.965976,0.00043025,30]
[331378710,1720302649916,-8353.93,0.0004315,120]
[331378711,1720302649928,-20000.0,0.00043224,4]
[331378712,1720302649941,-175.1,0.00043469,31]
[331378713,1720302649964,-152.0,0.00043469,31]
[331378714,1720302649975,-373.22165875,0.00043614,7]
[331378715,1720302649991,-175.1,0.00043631,31]
[331378716,1720302650108,-152.0,0.00043631,31]
[331378718,1720302650119,-1000.0,0.00043661,7]
[331378720,1720302650130,-5290.06267396,0.00043664,2]
[331378721,1720302650141,-150.0,0.00043683,2]
[331378723,1720302650159,-1940.17760531,0.00043735,2]
[331378725,1720302650175,-2000.0,0.00043735,2]
[331378728,1720302650232,-175.1,0.00043792,31]
[331378730,1720302650301,-152.0,0.00043792,31]
[331378732,1720302650318,-1000.0,0.00043795,7]
[331378733,1720302650363,-1000.0,0.00043813,7]
[331378734,1720302650374,-20450.24609962,0.00043835,31]
[331378735,1720302650426,-500.0,0.00043835,120]
[331378736,1720302650485,-500.0,0.00043835,120]
[331378737,1720302650497,-500.0,0.00043835,120]
[331378738,1720302650509,-1119.01,0.00043835,120]
[331378739,1720302650520,-151.0,0.00043835,14]
[331378740,1720302650530,-151.0,0.00043835,14]
[331378741,1720302650565,-151.0,0.00043835,14]
[331378742,1720302650578,-500.0,0.00043835,120]
[331378743,1720302650591,-503.56727095,0.00043835,120]
[331378744,1720302650603,-634.62,0.00043835,120]
[331378745,1720302650642,-151.0,0.00043835,14]
[331378746,1720302650725,-151.0,0.00043835,14]
[331378747,1720302650766,-151.0,0.00043835,14]
[331378749,1720302650938,-151.0,0.00043835,14]
[331378751,1720302650957,-500.0,0.00043835,120]
[331378752,1720302650968,-151.0,0.00043835,14]
[331378753,1720302650978,-225.494757,0.00043835,14]
[331378754,1720302650990,-500.0,0.00043835,120]
[331378756,1720302651013,-500.0,0.00043835,120]
[331378758,1720302651023,-360.09546543,0.00043835,120]
[331378759,1720302651033,-500.0,0.00043835,20]
[331378760,1720302651043,-500.0,0.00043835,120]
[331378761,1720302651054,-500.0,0.00043835,120]
[331378762,1720302651067,-289.294637,0.00043835,14]
[331378764,1720302651078,-500.0,0.00043835,120]
[331378766,1720302651129,-500.0,0.00043835,120]
[331378767,1720302651139,-500.0,0.00043835,120]
[331378774,1720302651269,-500.0,0.00043835,120]
[331378775,1720302651283,-1540.41,0.00043835,120]
[331378776,1720302651360,-500.0,0.00043835,120]
[331378777,1720302651371,-151.0,0.00043835,14]
[331378778,1720302651382,-151.0,0.00043835,14]
[331378779,1720302651456,-151.0,0.00043835,14]
[331378780,1720302651474,-151.0,0.00043835,14]
[331378781,1720302651486,-500.0,0.00043835,120]
[331378782,1720302651511,-500.0,0.00043835,120]
[331378783,1720302651521,-151.0,0.00043835,14]
[331378784,1720302651531,-151.0,0.00043835,14]
[331378785,1720302651542,-151.0,0.00043835,14]
[331378786,1720302651552,-151.0,0.00043835,14]
[331378787,1720302651562,-503.2720684,0.00043835,120]
[331378788,1720302651572,-500.0,0.00043835,120]
[331378789,1720302651581,-500.0,0.00043835,120]
[331378790,1720302651593,-500.0,0.00043835,120]
[331378791,1720302651645,-500.0,0.00043835,120]
[331378792,1720302651672,-955.81,0.00043835,120]
[331378793,1720302651711,-500.0,0.00043835,120]
[331378794,1720302651750,-500.0,0.00043835,120]
[331378795,1720302651762,-500.0,0.00043835,120]
[331378796,1720302651800,-500.0,0.00043835,120]
[331378798,1720302651823,-1000.0,0.00043835,30]
[331378800,1720302651835,-500.0,0.00043835,120]
[331378802,1720302651882,-602.51,0.00043835,120]
[331378804,1720302651892,-500.0,0.00043835,120]
[331378806,1720302651902,-300.7377108,0.00043835,120]
[331378808,1720302651922,-500.0,0.00043835,120]
[331378809,1720302651935,-1168.26,0.00043835,120]
[331378813,1720302652024,-505.23611264,0.00043835,120]
[331378815,1720302652035,-500.0,0.00043835,120]
[331378818,1720302652070,-500.0,0.00043835,120]
[331378821,1720302652128,-500.0,0.00043835,120]
[331378822,1720302652187,-373.12634637,0.00043835,120]
[331378823,1720302652198,-1032.36,0.00043835,120]
[331378824,1720302652278,-300.07414673,0.00043835,120]
[331378825,1720302652290,-500.0,0.00043835,120]
[331378826,1720302652302,-544.3,0.00043835,120]
[331378827,1720302652316,-500.0,0.00043835,120]
[331378828,1720302652331,-500.0,0.00043835,7]
[331378829,1720302652378,-513.77176839,0.00043835,120]
[331378830,1720302652423,-500.0,0.00043835,120]
[331378831,1720302652504,-326.32638019,0.00043835,120]
[331378832,1720302652525,-831.05,0.00043835,120]
[331378833,1720302652536,-500.0,0.00043835,120]
[331378834,1720302652564,-500.0,0.00043835,120]
[331378835,1720302652584,-723.47,0.00043835,120]
[331378836,1720302652596,-585.94,0.00043835,120]
[331378837,1720302652633,-500.0,0.00043835,120]
[331378838,1720302652649,-535.49,0.00043835,120]
[331378839,1720302652659,-500.0,0.00043835,120]
[331378842,1720302652758,-500.0,0.00043835,120]
[331378843,1720302652786,-617.10437205,0.00043835,120]
[331378844,1720302652826,-500.0,0.00043835,120]
[331378846,1720302652867,-430.09991306,0.00043835,120]
[331378847,1720302652892,-633.32,0.00043835,120]
[331378848,1720302652903,-533.54,0.00043835,120]
[331378849,1720302652914,-500.0,0.00043835,120]
[331378850,1720302653023,-500.0,0.00043835,120]
[331378851,1720302653043,-500.0,0.00043835,120]
[331378852,1720302653083,-500.0,0.00043835,120]
[331378853,1720302653094,-500.0,0.00043835,120]
[331378854,1720302653116,-500.0,0.00043835,120]
[331378855,1720302653184,-1576.18,0.00043835,60]
[331378856,1720302653196,-500.0,0.00043835,120]
[331378857,1720302653241,-1530.66,0.00043835,7]
[331378858,1720302653252,-519.81940115,0.00043835,120]
[331378859,1720302653266,-605.32,0.00043835,120]
[331378860,1720302653279,-500.0,0.00043835,120]
[331378861,1720302653291,-500.0,0.00043835,120]
[331378862,1720302653315,-500.0,0.00043835,120]
[331378863,1720302653326,-500.0,0.00043835,120]
[331378864,1720302653339,-500.0,0.00043835,120]
[331378865,1720302653349,-500.0,0.00043835,120]
[331378866,1720302653383,-500.0,0.00043835,120]
[331378867,1720302653394,-451.83409697,0.00043835,120]
[331378868,1720302653404,-500.0,0.00043835,120]
[331378869,1720302653440,-521.74285913,0.00043835,120]
[331378870,1720302653545,-500.0,0.00043835,120]
[331378871,1720302653574,-613.04579308,0.00043835,120]
[331378872,1720302653633,-500.0,0.00043835,120]
[331378873,1720302653643,-1202.49,0.00043835,120]
[331378874,1720302653654,-500.0,0.00043835,120]
[331378875,1720302653679,-500.0,0.00043835,120]
[331378876,1720302653700,-1364.51,0.00043835,120]
[331378877,1720302653710,-151.0,0.00043835,14]
[331378878,1720302653721,-500.0,0.00043835,120]
[331378879,1720302653787,-500.0,0.00043835,120]
[331378880,1720302653799,-3492.94,0.00043835,120]
[331378881,1720302653811,-154.79103211,0.00043835,120]
[331378882,1720302653823,-500.0,0.00043835,120]
[331378883,1720302653837,-500.0,0.00043835,120]
[331378884,1720302653851,-8704.85,0.00043835,120]
[331378885,1720302653864,-500.0,0.00043835,120]
[331378886,1720302653930,-500.0,0.00043835,120]
[331378887,1720302653944,-500.0,0.00043835,120]
[331378888,1720302653976,-500.0,0.00043835,120]
[331378889,1720302653988,-500.0,0.00043835,120]
[331378890,1720302654000,-653.22,0.00043835,120]
[331378891,1720302654064,-500.0,0.00043835,120]
[331378892,1720302654075,-500.0,0.00043835,120]
[331378893,1720302654085,-500.0,0.00043835,7]
[331378894,1720302654099,-501.28853615,0.00043835,120]
[331378895,1720302654109,-1000.0,0.00043835,120]
[331378896,1720302654143,-500.0,0.00043835,120]
[331378897,1720302654154,-151.0,0.00043835,14]
[331378898,1720302654188,-531.87,0.00043835,120]
[331378899,1720302654228,-500.0,0.00043835,120]
[331378900,1720302654242,-500.0,0.00043835,120]
[331378901,1720302654273,-500.0,0.00043835,120]
[331378902,1720302654289,-500.0,0.00043835,120]
[331378903,1720302654305,-524.4,0.00043835,120]
[331378904,1720302654366,-500.0,0.00043835,120]
[331378905,1720302654417,-1791.01,0.00043835,120]
[331378906,1720302654448,-500.0,0.00043835,120]
[331378907,1720302654487,-500.0,0.00043835,120]
[331378908,1720302654510,-500.0,0.00043835,120]
[331378909,1720302654525,-509.36794594,0.00043835,120]
[331378910,1720302654552,-500.0,0.00043835,120]
[331378911,1720302654618,-500.0,0.00043835,120]
[331378912,1720302654700,-524.7729764,0.00043835,120]
[331378913,1720302654712,-500.0,0.00043835,120]
[331378914,1720302654754,-500.0,0.00043835,120]
[331378915,1720302654824,-500.0,0.00043835,120]
[331378916,1720302654861,-2162.47,0.00043835,120]
[331378917,1720302654874,-500.0,0.00043835,120]
[331378918,1720302654901,-657.76,0.00043835,120]
[331378919,1720302654912,-500.0,0.00043835,120]
[331378920,1720302654924,-500.0,0.00043835,120]
[331378921,1720302655021,-500.0,0.00043835,120]
[331378922,1720302655066,-500.0,0.00043835,120]
[331378923,1720302655091,-238.48720098,0.00043835,120]
[331378924,1720302655107,-500.0,0.00043835,120]
[331378925,1720302655118,-624.49,0.00043835,120]
[331378926,1720302655142,-500.0,0.00043835,120]
[331378927,1720302655154,-500.0,0.00043835,120]
[331378928,1720302655167,-171.30517595,0.00043835,120]
[331378929,1720302655226,-500.0,0.00043835,120]
[331378930,1720302655253,-502.31,0.00043835,120]
[331378931,1720302655265,-500.0,0.00043835,120]
[331378932,1720302655294,-500.0,0.00043835,120]
[331378933,1720302655304,-500.0,0.00043835,120]
[331378934,1720302655314,-430.73873519,0.00043835,120]
[331378935,1720302655363,-529.31,0.00043835,120]
[331378936,1720302655387,-500.0,0.00043835,120]
[331378937,1720302655443,-500.0,0.00043835,120]
[331378938,1720302655471,-1303.67,0.00043835,120]
[331378939,1720302655501,-2268.45,0.00043835,120]
[331378940,1720302655512,-505.53,0.00043835,120]
[331378941,1720302655536,-500.0,0.00043835,120]
[331378942,1720302655576,-780.92,0.00043835,120]
[331378943,1720302655587,-500.0,0.00043835,120]
[331378944,1720302655627,-500.0,0.00043835,120]
[331378945,1720302655639,-500.0,0.00043835,120]
[331378946,1720302655730,-500.0,0.00043835,2]
[331378947,1720302655742,-500.0,0.00043835,120]
[331378948,1720302655767,-1183.47,0.00043835,120]
[331378949,1720302655851,-500.0,0.00043835,120]
[331378950,1720302655862,-500.0,0.00043835,120]
[331378951,1720302655910,-500.0,0.00043835,120]
[331378952,1720302655924,-151.0,0.00043835,14]
[331378953,1720302656008,-500.0,0.00043835,120]
[331378954,1720302656053,-500.0,0.00043835,120]
[331378955,1720302656066,-505.63634828,0.00043835,120]
[331378956,1720302656077,-151.0,0.00043835,14]
[331378957,1720302656092,-500.0,0.00043835,120]
[331378958,1720302656115,-500.0,0.00043835,120]
[331378959,1720302656125,-1259.55,0.00043835,120]
[331378960,1720302656135,-500.0,0.00043835,120]
[331378961,1720302656146,-500.0,0.00043835,120]
[331378962,1720302656160,-500.0,0.00043835,120]
[331378963,1720302656176,-500.0,0.00043835,120]
[331378964,1720302656187,-522.9874008,0.00043835,120]
[331378965,1720302656204,-500.0,0.00043835,120]
[331378966,1720302656214,-500.0,0.00043835,120]
[331378967,1720302656244,-3683.75,0.00043835,120]
[331378968,1720302656286,-500.0,0.00043835,120]
[331378969,1720302656296,-1315.83,0.00043835,120]
[331378970,1720302656306,-500.0,0.00043835,120]
[331378971,1720302656321,-1263.57,0.00043835,120]
[331378972,1720302656355,-500.0,0.00043835,120]
[331378973,1720302656366,-500.0,0.00043835,120]
[331378974,1720302656382,-500.0,0.00043835,120]
[331378975,1720302656442,-176.6763693,0.00043835,120]
[331378976,1720302656527,-500.0,0.00043835,120]
[331378977,1720302656539,-500.0,0.00043835,120]
[331378978,1720302656550,-500.0,0.00043835,120]
[331378979,1720302656561,-509.62990281,0.00043835,120]
[331378980,1720302656572,-500.0,0.00043835,120]
[331378981,1720302656584,-500.0,0.00043835,120]
[331378982,1720302656597,-501.8742337,0.00043835,120]
[331378983,1720302656607,-500.0,0.00043835,120]
[331378984,1720302656638,-500.0,0.00043835,120]
[331378985,1720302656739,-500.0,0.00043835,120]
[331378986,1720302656757,-500.0,0.00043835,120]
[331378987,1720302656776,-189.7635664,0.00043835,120]
[331378988,1720302656861,-500.0,0.00043835,120]
[331378989,1720302656872,-336.51504459,0.00043835,120]
[331378990,1720302656882,-4477.39,0.00043835,120]
[331378991,1720302656900,-500.0,0.00043835,120]
[331378992,1720302656913,-1294.74,0.00043835,120]
[331378993,1720302656932,-500.0,0.00043835,120]
[331378994,1720302656942,-500.0,0.00043835,120]
[331378995,1720302656981,-500.0,0.00043835,120]
[331378996,1720302657007,-583.71942751,0.00043835,120]
[331378997,1720302657110,-500.0,0.00043835,120]
[331378998,1720302657125,-500.0,0.00043835,120]
[331378999,1720302657206,-500.0,0.00043835,120]
[331379000,1720302657217,-747.23,0.00043835,120]
[331379001,1720302657245,-388.67705876,0.00043835,120]
[331379002,1720302657298,-907.7,0.00043835,120]
[331379003,1720302657353,-500.0,0.00043835,120]
[331379004,1720302657379,-500.0,0.00043835,30]
[331379005,1720302657430,-500.0,0.00043835,120]
[331379006,1720302657493,-500.0,0.00043835,120]
[331379007,1720302657504,-566.27697379,0.00043835,120]
[331379008,1720302657537,-500.0,0.00043835,120]
[331379009,1720302657559,-500.0,0.00043835,120]
[331379010,1720302657620,-539.68,0.00043835,120]
[331379011,1720302657631,-500.0,0.00043835,120]
[331379012,1720302657668,-1960.94,0.00043835,120]
[331379013,1720302657680,-1862.46,0.00043835,120]
[331379014,1720302657720,-1221.91,0.00043835,120]
[331379015,1720302657732,-539.43762611,0.00043835,120]
[331379016,1720302657743,-725.57,0.00043835,120]
[331379017,1720302657768,-500.0,0.00043835,120]
[331379018,1720302657802,-1534.39,0.00043835,120]
[331379019,1720302657823,-493.38553734,0.00043835,120]
[331379020,1720302657836,-500.0,0.00043835,120]
[331379021,1720302657891,-500.0,0.00043835,120]
[331379022,1720302657901,-1000.0,0.00043835,120]
[331379023,1720302657929,-1428.95,0.00043835,120]